fUST/lending_fUST_20240924
["ID","MTS","AMOUNT","RATE_DAILY","PERIOD"]
[339025623,1727135441638,-1155.82,0.000335,14]
[339025624,1727135441648,-500.0,0.00033561,30]
[339025625,1727135441660,-290.25,0.00033561,7]
[339025626,1727135441671,-537.84465568,0.00033561,30]
[339025627,1727135441682,-246.45,0.00033561,30]
[339025628,1727135441696,-500.0,0.00033561,30]
[339025629,1727135441706,-500.0,0.00033561,30]
[339025630,1727135441717,-500.0,0.00033561,30]
[339025631,1727135441728,-500.0,0.00033561,30]
[339025632,1727135441739,-6365.49,0.00033561,18]
[339025633,1727135441751,-860.38,0.000336,2]
[339025634,1727135441762,-500.0,0.00033698,30]
[339025635,1727135441773,-246.45,0.00033698,30]
[339025636,1727135441785,-500.0,0.00033698,30]
[339025637,1727135441796,-500.0,0.00033698,30]
[339025638,1727135441807,-500.0,0.00033698,30]
[339025639,1727135441819,-500.0,0.00033698,30]
[339025640,1727135441829,-6365.49,0.00033698,18]
[339025641,1727135441840,-449.5725,0.000337,120]
[339025642,1727135441851,-500.0,0.00033835,30]
[339025643,1727135441862,-246.45,0.00033835,30]
[339025644,1727135441872,-220.03161506,0.00033835,30]
[339025645,1727135441883,-500.0,0.00033835,30]
[339025646,1727135441894,-500.0,0.00033835,30]
[339025647,1727135441904,-500.0,0.00033835,30]
[339025648,1727135441915,-6365.49,0.00033835,18]
[339025649,1727135441926,-2573.96946831,0.00033962,15]
[339025650,1727135441939,-2477.06916327,0.00033962,5]
[339025651,1727135441950,-7903.48150281,0.00033962,5]
[339025652,1727135441961,-500.0,0.00033972,30]
[339025653,1727135441972,-246.45,0.00033972,30]
[339025654,1727135441982,-500.0,0.00033972,30]
[339025655,1727135441993,-500.0,0.00033972,30]
[339025656,1727135442003,-500.0,0.00033972,30]
[339025657,1727135442013,-6365.49,0.00033972,18]
[339025658,1727135442025,-480.0,0.00034037,2]
[339025659,1727135442036,-500.0,0.00034109,30]
[339025660,1727135442046,-246.45,0.00034109,30]
[339025661,1727135442057,-593.51,0.00034109,30]
[339025662,1727135442068,-500.0,0.00034109,30]
[339025663,1727135442080,-500.0,0.00034109,30]
[339025664,1727135442091,-6365.49,0.00034109,18]
[339025665,1727135442103,-282.7,0.00034226,7]
[339025666,1727135442114,-4954.13832654,0.00034226,5]
[339025667,1727135442124,-15806.9630056,0.00034226,5]
[339025668,1727135442135,-500.0,0.00034246,30]
[339025669,1727135442146,-246.45,0.00034246,30]
[339025670,1727135442158,-500.0,0.00034246,30]
[339025671,1727135442170,-445.02274658,0.00034246,30]
[339025672,1727135442181,-6365.49,0.00034246,18]
[339025673,1727135442193,-500.0,0.00034383,30]
[339025674,1727135442204,-246.45,0.00034383,30]
[339025675,1727135442216,-500.0,0.00034383,30]
[339025676,1727135442227,-6365.49,0.00034383,18]
[339025677,1727135442238,-1000.0,0.000344,16]
[339025678,1727135442248,-518.86091248,0.0003452,30]
[339025679,1727135442257,-246.45,0.0003452,30]
[339025680,1727135442269,-500.0,0.0003452,30]
[339025681,1727135442282,-6365.49,0.0003452,18]
[339025682,1727135442291,-150.0,0.00034583,2]
[339025683,1727135442302,-525.0,0.00034583,2]
[339025684,1727135442312,-1216.0,0.00034583,2]
[339025685,1727135442324,-150.0,0.00034583,2]
[339025686,1727135442335,-150.154,0.00034583,2]
[339025687,1727135442348,-2477.06916327,0.00034647,5]
[339025688,1727135442359,-7903.48150281,0.00034647,5]
[339025689,1727135442370,-500.0,0.00034657,30]
[339025690,1727135442381,-6365.49,0.00034657,18]
[339025691,1727135442392,-500.0,0.00034794,30]
[339025692,1727135442404,-6365.49,0.00034794,18]
[339025693,1727135442414,-2589.53029551,0.00034896,14]
[339025694,1727135442424,-1000.0,0.000349,16]
[339025695,1727135442437,-445.6771198,0.00034931,30]
[339025696,1727135442448,-6365.49,0.00034931,18]
[339025697,1727135442459,-430.89325708,0.00035019,2]
[339025698,1727135442470,-6365.49,0.00035068,18]
[339025699,1727135442480,-282.7,0.00035294,15]
[339025700,1727135442491,-4954.13832654,0.00035322,5]
[339025701,1727135442503,-15806.9630056,0.00035322,5]
[339025702,1727135442513,-2477.06916327,0.00035332,5]
[339025703,1727135442524,-7903.48150281,0.00035332,5]
[339025704,1727135442534,-231.986511,0.00035332,14]
[339025705,1727135442545,-151.0,0.00035332,14]
[339025706,1727135442556,-470.96592,0.00035332,14]
[339025708,1727135442566,-470.96592,0.00035332,14]
[339025710,1727135442577,-1768.5,0.000354,14]
[339025712,1727135442588,-4324.61,0.000354,14]
[339025713,1727135442598,-1155.82,0.000354,14]
[339025714,1727135442608,-1306.49938324,0.0003559,2]
[339025716,1727135442619,-1000.0,0.000356,2]
[339025718,1727135442630,-151.0,0.00035616,14]
[339025719,1727135442640,-151.0,0.00035616,14]
[339025720,1727135442651,-151.0,0.00035616,14]
[339025721,1727135442661,-151.0,0.00035616,14]
[339025722,1727135442672,-151.0,0.00035616,14]
[339025723,1727135442683,-151.0,0.00035616,14]
[339025724,1727135442694,-500.0,0.00035616,7]
[339025725,1727135442705,-500.0,0.00035616,7]
[339025726,1727135442717,-500.0,0.00035616,7]
[339025727,1727135442727,-500.0,0.00035616,7]
[339025728,1727135442738,-500.0,0.00035616,7]
[339025729,1727135442749,-500.0,0.00035616,7]
[339025730,1727135442760,-500.0,0.00035616,7]
[339025731,1727135442771,-500.0,0.00035616,7]
[339025732,1727135442781,-500.0,0.00035616,7]
[339025733,1727135442792,-500.0,0.00035616,7]
[339025734,1727135442802,-500.0,0.00035616,7]
[339025735,1727135442812,-500.0,0.00035616,7]
[339025736,1727135442823,-500.0,0.00035616,7]
[339025737,1727135442833,-500.0,0.00035616,7]
[339025738,1727135442843,-381.82986134,0.00035616,7]
[339025739,1727135442854,-400.0,0.00035616,2]
[339025740,1727135442863,-188.960512,0.00035616,120]
[339025741,1727135442874,-4954.13832654,0.0003568,5]
[339025742,1727135442884,-15806.9630056,0.0003568,5]
[339025743,1727135442894,-151.0,0.0003569,14]
[339025744,1727135442904,-151.0,0.0003569,14]
[339025746,1727135442914,-151.0,0.0003569,14]
[339025748,1727135442925,-151.0,0.0003569,14]
[339025749,1727135442936,-151.0,0.0003569,14]
[339025750,1727135442946,-151.0,0.0003569,14]
[339025751,1727135442957,-151.0,0.0003569,14]
[339025752,1727135442967,-151.0,0.0003569,14]
[339025753,1727135442978,-151.0,0.0003569,14]
[339025754,1727135442988,-151.0,0.0003569,14]
[339025755,1727135442998,-557.730614,0.0003569,14]
[339025756,1727135443008,-151.0,0.0003569,14]
[339025757,1727135443150,-174.879799,0.0003569,14]
[339025759,1727135443160,-151.0,0.0003569,14]
[339025760,1727135443169,-174.879799,0.0003569,14]
[339025761,1727135443179,-179.638494,0.0003569,14]
[339025762,1727135443189,-179.638494,0.0003569,14]
[339025763,1727135443198,-151.0,0.0003569,14]
[339025764,1727135443208,-151.0,0.0003569,14]
[339025765,1727135443218,-174.333868,0.0003569,14]
[339025766,1727135443227,-151.0,0.0003569,14]
[339025767,1727135443236,-151.0,0.0003569,14]
[339025768,1727135443245,-208.390598,0.0003569,14]
[339025769,1727135443254,-151.0,0.0003569,14]
[339025770,1727135443264,-208.390598,0.0003569,14]
[339025771,1727135443273,-151.0,0.0003569,14]
[339025772,1727135443283,-151.0,0.0003569,14]
[339025773,1727135443292,-151.0,0.0003569,14]
[339025774,1727135443302,-696.156052,0.0003569,14]
[339025775,1727135443312,-188.525817,0.0003569,14]
[339025776,1727135443322,-696.156052,0.0003569,14]
[339025778,1727135443332,-188.525817,0.0003569,14]
[339025780,1727135443341,-8297.832314,0.0003569,14]
[339025781,1727135443351,-151.0,0.0003569,14]
[339025782,1727135443362,-2477.06916327,0.0003569,5]
[339025783,1727135443371,-8297.832314,0.0003569,14]
[339025784,1727135443381,-2178.14537305,0.0003569,5]
[339025785,1727135443481,-500.0,0.00032876,30]
[339025786,1727135443490,-6365.49,0.00035205,18]
[339025787,1727135443501,-6365.49,0.00035342,18]
[339025788,1727135443510,-6365.49,0.00035479,18]
[339025789,1727135443520,-6365.49,0.00035616,18]
[339025790,1727135443530,-5725.33612976,0.0003569,5]
[339025791,1727135443540,-151.0,0.0003569,14]
[339025792,1727135443550,-586.66743907,0.00035699,2]
[339025793,1727135443560,-18777.27733562,0.000357,30]
[339025794,1727135443569,-151.0,0.000357,14]
[339025795,1727135443579,-150.112233,0.000357,9]
[339025796,1727135443588,-470.96592,0.000357,14]
[339025797,1727135443598,-470.96592,0.000357,14]
[339025798,1727135443607,-6365.49,0.00035753,18]
[339025799,1727135443618,-1306.49938316,0.00036291,2]
[339025800,1727135443630,-282.7,0.00036361,15]
[339025801,1727135443639,-430.89325708,0.00036739,2]
[339025802,1727135443649,-1306.49938316,0.00036992,2]
[339025803,1727135443659,-2500.0,0.00037097,3]
[339025804,1727135443668,-2500.0,0.00037105,3]
[339025805,1727135443677,-2500.0,0.00037114,3]
[339025806,1727135443687,-2500.0,0.00037123,3]
[339025807,1727135443697,-2500.0,0.00037123,3]
[339025808,1727135443706,-600.0,0.00037157,120]
[339025809,1727135443715,-30000.0,0.00037229,120]
[339025810,1727135443725,-153.0,0.00037289,120]
[339025811,1727135443735,-153.0,0.00037289,120]
[339025812,1727135443744,-151.0,0.00037329,14]
[339025813,1727135443754,-151.0,0.00037329,14]
[339025814,1727135443763,-151.0,0.00037329,14]
[339025815,1727135443773,-20000.0,0.00037339,4]
[339025816,1727135443782,-282.7,0.00037428,15]
[339025817,1727135443792,-150.0,0.00037583,2]
[339025818,1727135443801,-525.0,0.00037583,2]
[339025819,1727135443810,-1216.0,0.00037583,2]
[339025820,1727135443820,-150.0,0.00037583,2]
[339025821,1727135443831,-150.0,0.00037583,2]
[339025822,1727135443841,-416.49138049,0.00037693,2]
[339025823,1727135443925,-113.47239364,0.00032876,30]
[339025824,1727135443937,-266.69872152,0.00032876,30]
[339025825,1727135443975,-113.7086384,0.00032876,30]
[339025829,1727135446084,-6.12024644,0.00032876,30]
[339025830,1727135446094,-455.22087068,0.00032876,30]
[339025835,1727135971785,261.0,0.00022001,2]
[339025838,1727136425238,-300.0,0.00024999,2]
[339025839,1727136425259,-300.0,0.00024999,2]
[339025840,1727136425280,-2255.92712963,0.00025,3]
[339025841,1727136426145,-303.91657465,0.00025,3]
[339025842,1727136443124,-265.6502856,0.000246,2]
[339025843,1727136443145,-687.29972593,0.00025,3]
[339025846,1727136554131,-151.34866798,0.0002495,2]
[339025847,1727136554155,-2361.8973997,0.00025,3]
[339025849,1727136562137,-956.58266259,0.00025,3]
[339025887,1727136632303,-4480.9302679,0.00025,3]
[339025889,1727136632320,-250.0,0.00025747,2]
[339025892,1727136632332,-250.0,0.00025817,2]
[339025893,1727136632341,-250.0,0.00025888,2]
[339025896,1727136632352,-250.0,0.00025958,2]
[339025898,1727136632361,-250.0,0.00026029,2]
[339025899,1727136632370,-250.0,0.000261,2]
[339025901,1727136632380,-250.0,0.0002617,2]
[339025903,1727136632389,-250.0,0.00026241,2]
[339025905,1727136632399,-166.666666,0.0002627,2]
[339025906,1727136632408,-250.0,0.00026311,2]
[339025908,1727136632418,-250.0,0.00026382,2]
[339025910,1727136632427,-250.0,0.00026453,2]
[339025912,1727136632438,-250.0,0.00026523,2]
[339025913,1727136632448,-300.0,0.00026574,2]
[339025915,1727136632458,-300.0,0.00026593,2]
[339025917,1727136632467,-250.0,0.00026594,2]
[339025919,1727136632476,-563.307892,0.00026637,2]
[339025920,1727136632486,-250.0,0.00026664,2]
[339025921,1727136632495,-250.0,0.00026735,2]
[339025922,1727136632504,-250.0,0.00026806,2]
[339025923,1727136632513,-250.0,0.00026876,2]
[339025924,1727136632522,-250.0,0.00026947,2]
[339025925,1727136632532,-243.8789407,0.00026951,2]
[339025926,1727136632542,-24900.0,0.00026952,2]
[339025927,1727136632551,-250.0,0.00027017,2]
[339025928,1727136632561,-250.0,0.00027088,2]
[339025929,1727136632570,-200.0,0.000273,120]
[339025930,1727136632580,-446.941687,0.00027397,2]
[339025931,1727136632589,-420.0,0.00028762,2]
[339025932,1727136632598,-180.0,0.00029231,2]
[339025933,1727136632608,-160.223528,0.00029397,2]
[339025934,1727136632617,-212.1,0.00029857,5]
[339025935,1727136632627,-19758.4327501,0.0002998,4]
[339025936,1727136632636,-309.47766963,0.00029989,2]
[339025937,1727136632646,-9879.21637504,0.0002999,4]
[339025938,1727136632655,-179.37320966,0.00029999,2]
[339025939,1727136632664,-500.0,0.00029999,2]
[339025940,1727136632673,-398.83924775,0.00029999,2]
[339025941,1727136632682,-500.0,0.00029999,2]
[339025942,1727136632691,-40224.58327387,0.0003,30]
[339025946,1727136638438,-90913.44953373,0.0003,30]
[339025947,1727136638448,-212.1,0.00030933,5]
[339025948,1727136638458,-158.786363,0.00030954,2]
[339025949,1727136638467,-166.967,0.00030954,27]
[339025950,1727136638476,-158.786363,0.00030966,2]
[339025951,1727136638486,-158.786363,0.00030978,2]
[339025952,1727136638495,-158.786363,0.0003099,2]
[339025953,1727136638504,-158.786363,0.00031002,2]
[339025954,1727136638514,-158.786363,0.00031014,2]
[339025955,1727136638523,-158.786363,0.00031026,2]
[339025956,1727136638533,-158.786363,0.00031037,2]
[339025957,1727136638542,-158.786363,0.00031049,2]
[339025958,1727136638551,-158.786363,0.00031061,2]
[339025959,1727136638562,-158.786363,0.00031073,2]
[339025960,1727136638571,-158.786363,0.00031085,2]
[339025961,1727136638580,-158.786363,0.00031097,2]
[339025962,1727136638589,-480.0,0.00031108,2]
[339025963,1727136638598,-158.786363,0.00031109,2]
[339025964,1727136638608,-4939.60818752,0.0003199,4]
[339025965,1727136638617,-1000.0,0.00032,30]
[339025966,1727136638629,-212.1,0.00032009,6]
[339025967,1727136638638,-302.36509981,0.00032712,16]
[339025968,1727136638647,-19758.4327501,0.00032856,5]
[339025969,1727136638656,-9879.21637504,0.00032866,5]
[339025970,1727136638666,-500.0,0.00032876,30]
[339025971,1727136638676,-500.0,0.00032876,30]
[339025972,1727136638685,-500.0,0.00032876,30]
[339025973,1727136638694,-500.0,0.00032876,30]
[339025974,1727136638703,-500.0,0.00032876,30]
[339025975,1727136638712,-398.00014711,0.00032876,30]
[339025976,1727136638721,-600.29419118,0.00032876,30]
[339025977,1727136638730,-500.0,0.00032876,30]
[339025978,1727136638739,-500.0,0.00032876,30]
[339025979,1727136638748,-500.0,0.00032876,30]
[339025980,1727136638757,-500.0,0.00032876,30]
[339025981,1727136638767,-500.0,0.00032876,30]
[339025982,1727136638776,-500.0,0.00032876,30]
[339025983,1727136638785,-500.0,0.00032876,30]
[339025984,1727136638794,-500.0,0.00032876,30]
[339025985,1727136638803,-500.0,0.00032876,30]
[339025986,1727136638812,-500.0,0.00032876,30]
[339025987,1727136638821,-501.02762435,0.00032876,30]
[339025988,1727136638831,-500.0,0.00032876,30]
[339025989,1727136638840,-500.0,0.00032876,30]
[339025990,1727136638849,-500.0,0.00032876,30]
[339025991,1727136638858,-500.0,0.00032876,30]
[339025992,1727136638867,-513.83388828,0.00032876,30]
[339025993,1727136638879,-500.0,0.00032876,30]
[339025994,1727136638888,-500.0,0.00032876,2]
[339025995,1727136638897,-246.11,0.00032876,30]
[339025996,1727136638906,-500.0,0.00032876,30]
[339025997,1727136638915,-432.16,0.00032876,30]
[339025998,1727136638925,-500.0,0.00032876,30]
[339025999,1727136638934,-500.0,0.00032876,30]
[339026000,1727136638943,-500.0,0.00032876,30]
[339026001,1727136638952,-500.0,0.00032876,30]
[339026002,1727136638961,-500.0,0.00032876,30]
[339026003,1727136638974,-500.0,0.00032876,30]
[339026004,1727136638983,-500.0,0.00032876,30]
[339026005,1727136638992,-500.0,0.00032876,30]
[339026006,1727136639001,-500.0,0.00032876,30]
[339026007,1727136639010,-500.0,0.00032876,30]
[339026008,1727136639019,-500.0,0.00032876,7]
[339026009,1727136639028,-500.0,0.00032876,30]
[339026010,1727136639037,-500.0,0.00032876,30]
[339026011,1727136639046,-500.0,0.00032876,30]
[339026012,1727136639055,-500.0,0.00032876,30]
[339026013,1727136639065,-500.0,0.00032876,30]
[339026014,1727136639074,-316.23468426,0.00032876,30]
[339026015,1727136639083,-500.0,0.00032876,30]
[339026016,1727136639092,-500.0,0.00032876,30]
[339026017,1727136639102,-500.0,0.00032876,30]
[339026018,1727136639112,-500.0,0.00032876,30]
[339026019,1727136639121,-544.37,0.00032876,30]
[339026020,1727136639131,-500.0,0.00032876,30]
[339026021,1727136639141,-500.0,0.00032876,30]
[339026022,1727136639153,-317.74559622,0.00032876,30]
[339026023,1727136639162,-609.47,0.00032876,30]
[339026024,1727136639171,-500.0,0.00032876,30]
[339026025,1727136639180,-500.0,0.00032876,30]
[339026026,1727136639189,-500.0,0.00032876,30]
[339026027,1727136639198,-500.0,0.00032876,30]
[339026028,1727136639207,-500.0,0.00032876,30]
[339026029,1727136639216,-500.0,0.00032876,30]
[339026030,1727136639225,-500.0,0.00032876,30]
[339026031,1727136639235,-500.0,0.00032876,30]
[339026032,1727136639243,-500.0,0.00032876,30]
[339026033,1727136639253,-1000.0,0.00032876,120]
[339026034,1727136639263,-500.0,0.00032876,7]
[339026035,1727136639272,-500.0,0.00032876,30]
[339026036,1727136639282,-500.0,0.00032876,30]
[339026037,1727136639291,-500.0,0.00032876,30]
[339026038,1727136639300,-500.0,0.00032876,30]
[339026039,1727136639309,-178.64428665,0.00032876,30]
[339026040,1727136639318,-342.27522796,0.00032876,30]
[339026041,1727136639328,-573.0,0.00032876,30]
[339026042,1727136639337,-500.0,0.00032876,30]
[339026043,1727136639346,-500.0,0.00032876,30]
[339026044,1727136639355,-500.0,0.00032876,30]
[339026045,1727136639365,-500.0,0.00032876,30]
[339026046,1727136639374,-500.0,0.00032876,2]
[339026047,1727136639385,-500.0,0.00032876,30]
[339026048,1727136639394,-500.0,0.00032876,30]
[339026049,1727136639403,-554.396346,0.00032876,2]
[339026050,1727136639412,-500.0,0.00032876,30]
[339026051,1727136639422,-558.543896,0.00032876,30]
[339026052,1727136639431,-500.0,0.00032876,30]
[339026053,1727136639440,-500.0,0.00032876,30]
[339026054,1727136639449,-500.0,0.00032876,30]
[339026055,1727136639459,-500.0,0.00032876,30]
[339026056,1727136639468,-500.0,0.00032876,30]
[339026057,1727136639477,-500.0,0.00032876,30]
[339026058,1727136639486,-500.0,0.00032876,30]
[339026059,1727136639495,-500.0,0.00032876,30]
[339026060,1727136639504,-500.0,0.00032876,30]
[339026061,1727136639513,-500.58705611,0.00032876,30]
[339026062,1727136639522,-500.0,0.00032876,30]
[339026063,1727136639532,-500.0,0.00032876,30]
[339026064,1727136639541,-500.0,0.00032876,30]
[339026065,1727136639550,-500.0,0.00032876,25]
[339026066,1727136639560,-500.0,0.00032876,30]
[339026067,1727136639569,-500.0,0.00032876,120]
[339026068,1727136639578,-500.0,0.00032876,30]
[339026069,1727136639587,-500.0,0.00032876,30]
[339026070,1727136639598,-500.0,0.00032876,30]
[339026071,1727136639607,-500.0,0.00032876,30]
[339026072,1727136639616,-500.0,0.00032876,30]
[339026073,1727136639628,-500.0,0.00032876,30]
[339026074,1727136639637,-500.0,0.00032876,30]
[339026075,1727136639647,-500.0,0.00032876,30]
[339026076,1727136639656,-6443.97,0.00032876,18]
[339026077,1727136639665,-500.0,0.00032876,30]
[339026078,1727136639674,-560.68861081,0.00032876,30]
[339026079,1727136639683,-500.0,0.00032876,30]
[339026080,1727136639825,-500.0,0.00032876,30]
[339026081,1727136639836,-500.0,0.00032876,21]
[339026083,1727136639846,-500.0,0.00032876,30]
[339026085,1727136639855,-500.0,0.00032876,30]
[339026086,1727136639865,-500.0,0.00032876,2]
[339026087,1727136639874,-340.51778377,0.00032876,30]
[339026088,1727136639886,-500.0,0.00032876,30]
[339026089,1727136639895,-500.0,0.00032876,30]
[339026090,1727136639904,-500.0,0.00032876,30]
[339026091,1727136639914,-500.0,0.00032876,30]
[339026092,1727136639923,-500.0,0.00032876,30]
[339026093,1727136639933,-500.0,0.00032876,30]
[339026094,1727136639942,-500.0,0.00032876,30]
[339026095,1727136639951,-500.0,0.00032876,30]
[339026096,1727136639960,-500.0,0.00032876,30]
[339026097,1727136639970,-500.0,0.00032876,30]
[339026098,1727136639980,-500.0,0.00032876,30]
[339026099,1727136639989,-500.0,0.00032876,30]
[339026100,1727136639998,-500.0,0.00032876,30]
[339026101,1727136640008,-500.0,0.00032876,30]
[339026102,1727136640017,-500.0,0.00032876,30]
[339026103,1727136640026,-500.0,0.00032876,30]
[339026104,1727136640035,-500.0,0.00032876,30]
[339026105,1727136640044,-500.0,0.00032876,30]
[339026106,1727136640054,-500.0,0.00032876,30]
[339026107,1727136640063,-500.0,0.00032876,30]
[339026108,1727136640073,-500.0,0.00032876,30]
[339026109,1727136640082,-500.0,0.00032876,30]
[339026110,1727136640091,-500.0,0.00032876,30]
[339026111,1727136640101,-500.0,0.00032876,30]
[339026112,1727136640110,-500.0,0.00032876,30]
[339026113,1727136640119,-500.0,0.00032876,30]
[339026114,1727136640129,-500.0,0.00032876,30]
[339026115,1727136640138,-500.0,0.00032876,30]
[339026116,1727136640150,-500.0,0.00032876,30]
[339026117,1727136640159,-500.0,0.00032876,30]
[339026118,1727136640168,-501.89772878,0.00032876,30]
[339026119,1727136640177,-500.0,0.00032876,30]
[339026120,1727136640186,-500.0,0.00032876,30]
[339026121,1727136640196,-500.0,0.00032876,30]
[339026122,1727136640206,-500.0,0.00032876,30]
[339026123,1727136640215,-500.0,0.00032876,30]
[339026124,1727136640225,-500.0,0.00032876,30]
[339026125,1727136640234,-500.0,0.00032876,30]
[339026126,1727136640243,-500.0,0.00032876,30]
[339026127,1727136640252,-500.0,0.00032876,30]
[339026128,1727136640261,-500.0,0.00032876,30]
[339026129,1727136640270,-500.0,0.00032876,30]
[339026130,1727136640279,-500.0,0.00032876,30]
[339026131,1727136640288,-500.0,0.00032876,30]
[339026132,1727136640297,-500.0,0.00032876,30]
[339026133,1727136640306,-500.0,0.00032876,30]
[339026134,1727136640315,-500.0,0.00032876,30]
[339026135,1727136640324,-500.0,0.00032876,30]
[339026136,1727136640333,-24698.0409376,0.0003298,5]
[339026137,1727136640342,-151.0,0.0003299,14]
[339026138,1727136640351,-151.0,0.0003299,14]
[339026139,1727136640360,-151.0,0.0003299,14]
[339026140,1727136640369,-151.0,0.0003299,14]
[339026141,1727136640380,-151.0,0.0003299,14]
[339026142,1727136640389,-2033.795754,0.0003299,14]
[339026143,1727136640398,-151.0,0.0003299,14]
[339026144,1727136640406,-2033.795754,0.0003299,14]
[339026145,1727136640415,-151.0,0.0003299,14]
[339026146,1727136640425,-151.0,0.0003299,14]
[339026147,1727136640434,-151.0,0.0003299,14]
[339026148,1727136640444,-151.0,0.0003299,14]
[339026149,1727136640453,-557.730614,0.0003299,14]
[339026150,1727136640463,-557.730614,0.0003299,14]
[339026151,1727136640472,-151.0,0.0003299,14]
[339026152,1727136640482,-151.0,0.0003299,14]
[339026153,1727136640491,-151.0,0.0003299,14]
[339026154,1727136640500,-174.333868,0.0003299,14]
[339026155,1727136640509,-151.0,0.0003299,14]
[339026156,1727136640518,-231.986511,0.0003299,14]
[339026157,1727136640527,-151.0,0.0003299,14]
[339026158,1727136640536,-151.0,0.0003299,14]
[339026159,1727136640545,-151.0,0.0003299,14]
[339026160,1727136640555,-9879.21637504,0.0003299,5]
[339026161,1727136640564,-188.525817,0.0003299,14]
[339026162,1727136640573,-740.655466,0.0003299,14]
[339026163,1727136640582,-188.525817,0.0003299,14]
[339026164,1727136640591,-740.655466,0.0003299,14]
[339026165,1727136640600,-696.156052,0.0003299,14]
[339026166,1727136640609,-696.156052,0.0003299,14]
[339026167,1727136640618,-151.0,0.0003299,14]
[339026168,1727136640627,-151.0,0.0003299,14]
[339026169,1727136640636,-151.0,0.0003299,14]
[339026170,1727136640645,-151.0,0.0003299,14]
[339026171,1727136640654,-174.879799,0.0003299,14]
[339026172,1727136640663,-174.879799,0.0003299,14]
[339026173,1727136640673,-8297.832314,0.0003299,14]
[339026174,1727136640682,-8297.832314,0.0003299,14]
[339026175,1727136640691,-470.96592,0.0003299,14]
[339026176,1727136640700,-470.96592,0.0003299,14]
[339026177,1727136640709,-151.0,0.0003299,14]
[339026178,1727136640718,-97809.04885847,0.00033,6]
[339026179,1727136640727,-3000.0,0.00033,14]
[339026180,1727136640737,-3000.0,0.0003301,14]
[339026181,1727136640746,-315.25642931,0.00033012,30]
[339026182,1727136640756,-500.0,0.00033012,30]
[339026183,1727136640765,-246.11,0.00033013,30]
[339026184,1727136640775,-500.0,0.00033013,30]
[339026185,1727136640784,-500.0,0.00033013,30]
[339026186,1727136640794,-500.0,0.00033013,30]
[339026187,1727136640804,-500.0,0.00033013,30]
[339026188,1727136640813,-500.0,0.00033013,7]
[339026189,1727136640822,-500.0,0.00033013,30]
[339026190,1727136640832,-500.0,0.00033013,30]
[339026191,1727136640841,-500.0,0.00033013,30]
[339026192,1727136640851,-500.0,0.00033013,30]
[339026193,1727136640861,-500.0,0.00033013,30]
[339026194,1727136640870,-517.05312357,0.00033013,30]
[339026195,1727136640880,-500.0,0.00033013,30]
[339026196,1727136640890,-500.0,0.00033013,30]
[339026197,1727136640899,-640.26,0.00033013,30]
[339026198,1727136640908,-6443.97,0.00033013,18]
[339026199,1727136640917,-500.0,0.00033013,21]
[339026200,1727136640927,-162.2128721,0.00033013,30]
[339026201,1727136640936,-500.0,0.00033013,30]